bitfinex/quotes_ETHUSD_20260306
["timestamp","ask_amount","ask_price","bid_price","bid_amount"]
[1772800909137,1.68739177,2044.8,2044.2,2.35793175]
[1772800909138,0.46477593,2044.7,2044.2,2.35793175]
[1772800909338,0.46477593,2044.7,2044.2,2.35797052]
[1772800909636,1.22261584,2044.8,2044.3,0.48014695]
[1772800909957,1.22259756,2044.9,2044.3,0.48014695]
[1772800910459,0.46477593,2044.8,2044.2,2.83811153]
[1772800910656,1.22267325,2044.7,2044.2,2.83811153]
[1772800911132,1.68743595,2044.8,2044.2,2.83811153]
[1772800911453,1.68741737,2044.8,2044.2,1.70311153]
[1772800911632,1.68741737,2044.8,2044.3,1.135]
[1772800913256,1.68741737,2044.8,2044.1,1.22302973]
[1772800913257,0.46477593,2044.7,2044.1,1.22302973]
[1772800913461,0.46477593,2044.7,2044.1,1.135]
[1772800914861,0.46477593,2044.7,2044.1,0.935]
[1772800915032,0.46477593,2044.7,2043.7,2.85335055]
[1772800915528,0.47572259,2044.5,2043.7,2.85335055]
[1772800915943,0.47572259,2044.5,2043.7,2.35823126]
[1772800916258,0.47572259,2044.5,2043.8,0.49511929]
[1772800916753,0.47572259,2044.5,2044.4,0.0011]
[1772800916955,0.47572259,2044.5,2043.8,0.49511929]
[1772800917257,0.47572259,2044.5,2044.2,0.0011]
[1772800917628,1.22285267,2044.4,2044.2,0.0011]
[1772800917824,1.69857526,2044.4,2044.2,0.0011]
[1772800919659,0.47572259,2044.3,2044.2,0.0011]
[1772800919858,0.47572259,2044.3,2043.9,0.0011]
[1772800920932,0.47572259,2044.3,2043.9,0.0024]
[1772800922361,0.49322286,2044.5,2043.9,0.483754]
[1772800922573,5.38444967,2044.5,2043.9,0.483754]
[1772800922952,1.22378207,2044.6,2043.9,0.483754]
[1772800923158,0.001,2044.6,2043.9,0.483754]
[1772800923362,1.22373953,2044.6,2043.9,0.483754]
[1772800923750,0.001,2044.6,2043.9,0.483754]
[1772800924556,0.001,2044.6,2044.1,0.481354]
[1772800924972,1.71578094,2044.9,2044.1,0.481354]
[1772800927767,1.71578094,2044.9,2044.2,1.22297231]
[1772800927938,1.71578094,2044.9,2044.3,0.481354]
[1772800928763,0.49322286,2044.8,2044.1,0.481354]
[1772800928968,0.49322286,2045.0,2044.1,0.481354]
[1772800929264,0.49322286,2045.0,2044.2,0.481354]
[1772800929939,1.71573149,2045.0,2044.4,0.481354]
[1772800930140,0.001,2044.7,2044.4,0.481354]
[1772800930564,0.001,2045.1,2044.4,0.481354]
[1772800931366,0.49322286,2045.0,2044.4,1.134]
[1772800932344,1.22255367,2044.9,2044.5,1.22279285]
[1772800932544,1.71577653,2044.9,2044.4,2.83815967]
[1772800933571,1.71577653,2044.9,2044.4,1.615354]
[1772800933764,0.49322286,2044.8,2044.4,1.134]
[1772800934163,0.49322286,2044.8,2044.2,0.481354]
[1772800934367,1.22267325,2044.7,2044.2,2.83832267]
[1772800934562,1.71587897,2044.8,2044.2,2.83832267]
[1772800935975,1.71587897,2044.8,2044.3,0.481354]
[1772800936478,1.71587897,2044.8,2044.3,1.70426487]
[1772800938376,1.71587897,2044.8,2044.3,1.70425407]
[1772800938572,0.49322286,2044.7,2044.2,1.134]
[1772800939675,0.49322286,2044.7,2044.1,0.0011]
[1772800940674,0.49322286,2044.5,2044.1,0.0011]
[1772800941972,0.49422286,2044.5,2044.1,0.0011]
[1772800942172,0.49422286,2044.5,2044.2,0.0011]
[1772800943480,0.49322286,2044.3,2044.2,0.0011]
[1772800944243,0.49422286,2044.5,2044.2,0.0011]
[1772800944449,0.001,2044.5,2044.2,0.482454]
[1772800944651,1.22380201,2044.5,2044.2,0.482454]
[1772800944850,1.71702487,2044.5,2044.2,0.0011]
[1772800945781,0.001,2044.5,2044.2,0.0011]
[1772800946856,0.001,2044.5,2044.2,0.482454]
[1772800947178,0.001,2044.5,2044.2,0.0011]
[1772800947549,0.49422286,2044.5,2044.2,0.0011]
[1772800947779,0.001,2044.5,2044.2,0.482454]
[1772800948972,0.49422286,2044.5,2044.2,0.0011]
[1772800949872,1.22285267,2044.4,2044.2,0.0011]
[1772800952585,1.70665212,2044.4,2044.2,0.0011]
[1772800953187,0.48379945,2044.3,2043.9,0.0011]
[1772800953962,0.43379945,2044.3,2043.9,0.0011]
[1772800954692,1.22297231,2044.2,2043.9,0.0011]
[1772800954884,1.70677176,2044.2,2043.9,0.0011]
[1772800955085,0.48379945,2044.1,2043.9,0.0011]
[1772800956270,1.22297231,2044.2,2043.9,0.0011]
[1772800956791,0.48379945,2044.1,2043.9,0.0011]
[1772800957557,0.48379945,2044.1,2043.7,0.38457714]
[1772800958390,0.48379945,2044.1,2043.7,1.60784321]
[1772800958979,1.22302706,2044.2,2043.7,1.60784321]
[1772800959164,1.70673194,2044.3,2043.7,1.22326607]
[1772800959374,1.70673194,2044.3,2043.8,0.42392019]
[1772800959579,0.48379945,2044.3,2043.8,0.42392019]
[1772800959762,1.70671645,2044.3,2043.8,0.42392019]
[1772800959963,1.70760078,2044.5,2043.8,0.42392019]
[1772800960196,0.48379945,2044.4,2043.8,0.42392019]
[1772800961489,1.22291248,2044.3,2043.8,1.64710804]
[1772800961690,1.70671193,2044.3,2043.8,1.64712856]
[1772800962202,1.70671193,2044.3,2043.8,1.22320837]
[1772800962400,1.70671193,2044.3,2043.8,1.64712856]
[1772800963777,0.48379945,2044.3,2043.9,0.42392019]
[1772800963972,1.70761954,2044.5,2044.0,1.136]
[1772800964294,1.70761954,2044.5,2044.1,0.42392019]
[1772800965066,0.48379945,2044.4,2043.9,0.42392019]
[1772800965534,0.48379945,2044.2,2043.7,0.42392019]
[1772800965667,0.48379945,2044.2,2043.1,0.43491016]
[1772800966098,0.48379945,2044.2,2043.2,1.22356933]
[1772800966297,0.48379945,2044.2,2043.1,1.56591016]
[1772800966596,0.48379945,2044.2,2043.1,1.14198997]
[1772800966806,0.48379945,2043.8,2043.1,0.01098997]
[1772800967179,0.48379945,2043.8,2043.1,1e-08]
[1772800967579,0.48379945,2043.6,2043.1,1e-08]
[1772800967781,0.48379945,2043.6,2043.5,0.0011]
[1772800967988,0.48379945,2043.6,2043.3,0.0011]
[1772800969616,0.48379945,2043.4,2042.7,1.128]
[1772800970205,0.48379945,2043.4,2042.4,1.22401218]
[1772800970597,0.48379945,2043.4,2042.4,1.64903237]
[1772800970793,0.48379945,2043.4,2042.4,1.22401218]
[1772800971009,0.48379945,2043.4,2042.5,0.42502019]
[1772800971207,0.48379945,2043.4,2042.3,6.02540116]
[1772800971208,0.48379945,2043.4,2042.3,0.0011]
[1772800971927,0.48379945,2043.2,2042.3,0.0011]
[1772800972109,0.48379945,2043.0,2042.3,0.0011]
[1772800974730,0.45652784,2042.8,2042.3,0.0011]
[1772800976597,1.22387036,2042.7,2042.3,0.0011]
[1772800977003,1.6803982,2042.7,2042.3,0.0011]
[1772800978033,0.45652784,2042.6,2042.3,0.0011]
[1772800978824,1.68050493,2042.6,2042.3,0.0011]
[1772800979138,1.6805019,2042.6,2042.3,0.0011]
[1772800979930,1.6805019,2042.6,2042.5,0.0011]
[1772800980137,1.22387036,2042.7,2042.5,0.0011]
[1772800980317,0.45652784,2042.6,2042.3,0.0011]
[1772800980729,0.45652784,2042.6,2042.0,0.0011]
[1772800981034,0.45652784,2042.4,2042.0,0.0022]
[1772800981538,0.45652784,2042.4,2042.0,0.0011]
[1772800981847,0.45652784,2042.4,2042.0,0.0022]
[1772800982205,1.71814727,2042.6,2042.0,0.37783554]
[1772800982414,0.4941724,2042.5,2042.0,0.37783554]
[1772800983610,5.38971219,2042.7,2042.1,1.59986549]
[1772800983927,0.4941724,2043.1,2042.3,0.37563554]
[1772800984303,1.71772374,2043.3,2042.5,0.37563554]
[1772800984707,1.71772374,2043.3,2042.6,0.0011]
[1772800984936,1.71772374,2043.3,2042.7,0.37563554]
[1772800985715,1.71772374,2043.3,2042.8,1.22381045]
[1772800986304,1.71772374,2043.3,2042.7,1.59945646]
[1772800986505,1.71772374,2043.3,2042.8,0.0011]
[1772800986746,1.71772602,2043.3,2042.8,0.0011]
[1772800987048,1.22448546,2043.4,2042.8,0.37673554]
[1772800987406,1.71865786,2043.4,2042.8,0.37673554]
[1772800988240,0.4951724,2043.4,2042.8,1.60049029]
[1772800988443,0.4951724,2043.4,2042.8,1.59939029]
[1772800990357,1.22351098,2043.3,2042.8,1.59939029]
[1772800992110,1.22351098,2043.3,2042.9,0.0011]
[1772800992317,1.71768338,2043.3,2042.9,0.0011]
[1772800992620,0.001,2043.2,2042.9,0.0011]
[1772800994217,0.001,2043.2,2042.9,0.37673554]
[1772800994420,0.001,2043.2,2043.0,1.22369065]
[1772800994728,0.001,2043.2,2043.0,1.59932619]
[1772800995821,0.001,2043.2,2042.9,1.22480202]
[1772800996023,0.001,2043.2,2042.9,0.0011]
[1772800996554,0.001,2043.2,2042.9,1.22484334]
[1772800999256,0.001,2043.2,2042.9,1.60047888]
[1772800999622,0.001,2043.2,2042.9,1.59937888]
[1772800999825,0.001,2043.2,2043.0,0.37673554]
[1772801000018,0.001,2043.4,2043.0,0.37673554]
[1772801000220,10.0006275,2043.9,2043.0,0.37673554]
[1772801000221,1.9861724,2043.9,2043.1,0.37463554]
[1772801000526,1.71733545,2043.9,2043.1,0.37463554]
[1772801001026,0.4941724,2043.8,2043.2,1.5982064]
[1772801001226,0.4941724,2043.8,2043.3,0.37463554]
[1772801002727,0.4941724,2043.8,2043.4,0.0011]
[1772801003249,1.22316305,2043.9,2043.4,1.59918665]
[1772801003638,1.71733545,2043.9,2043.4,1.59918665]
[1772801004261,0.001,2043.6,2043.4,1.59918665]
[1772801004429,0.001,2043.6,2043.5,0.37463554]
[1772801004933,1.71729581,2044.0,2043.5,0.37463554]
[1772801005143,1.71738287,2043.9,2043.5,0.37463554]
[1772801006033,0.4941724,2043.8,2043.1,0.37463554]
[1772801006229,0.4941724,2043.8,2043.1,1.134]
[1772801007274,0.4941724,2043.6,2043.1,1.134]
[1772801007777,0.4941724,2043.6,2043.1,2.73223071]
[1772801008160,0.4941724,2043.6,2043.1,1.134]
[1772801008882,0.4941724,2043.6,2043.1,2.3576273]
[1772801009564,1.71756218,2043.6,2043.1,2.73226284]
[1772801009773,0.4941724,2043.6,2043.1,2.73226284]
[1772801009983,1.22329999,2043.7,2043.2,0.37463554]
[1772801010612,1.71747239,2043.7,2043.2,0.37463554]
[1772801011879,1.71746238,2043.7,2043.3,1.22351098]
[1772801012250,1.71745242,2043.7,2043.3,1.22351098]
[1772801012584,0.45111443,2043.9,2043.3,1.59814652]
[1772801013283,0.45111443,2043.9,2043.4,0.37463554]
[1772801013702,1.67517558,2044.1,2043.4,0.37463554]
[1772801013871,1.67517558,2044.1,2043.5,1.59802678]
[1772801015183,1.67517558,2044.1,2043.6,0.37463554]
[1772801016469,0.001,2043.9,2043.6,0.37463554]
[1772801021073,0.001,2043.9,2043.6,2.73495521]
[1772801021684,0.001,2043.9,2043.6,1.51163554]
[1772801021861,0.001,2043.9,2043.6,1.137]
[1772801022063,0.001,2043.9,2043.7,0.37463554]
[1772801023096,0.001,2044.1,2043.7,0.37463554]
[1772801023459,0.001,2044.1,2043.9,0.37463554]
[1772801024994,0.45211443,2044.1,2043.5,0.37463554]
[1772801025286,0.45211443,2044.1,2043.6,1.138]
[1772801025665,1.22309197,2044.0,2043.6,2.73596557]
[1772801026092,1.22408026,2044.1,2043.7,0.37463554]
[1772801026390,0.001,2044.1,2043.7,0.37463554]
[1772801027498,1.22404053,2044.1,2043.7,0.37463554]
[1772801027697,0.001,2044.1,2043.8,0.37463554]
[1772801027896,0.001,2044.1,2043.8,1.138]
[1772801027897,0.45111443,2044.0,2043.8,1.138]
[1772801028194,0.001,2043.9,2043.7,1.1391]
[1772801028700,0.45211443,2043.9,2043.7,0.0011]
[1772801030089,1.67527796,2043.9,2043.7,0.0011]
[1772801032004,0.45211443,2043.9,2043.7,0.0011]
[1772801032390,1.67529345,2043.9,2043.7,0.0011]
[1772801033120,1.22417902,2043.9,2043.7,0.0011]
[1772801034104,0.49999999,2043.8,2043.2,1.1401]
[1772801036405,1.72322808,2043.8,2043.3,1.22351098]
[1772801038709,0.49999999,2043.7,2043.2,2.36366539]
[1772801040408,0.50099999,2043.9,2043.5,0.0011]
[1772801040706,0.001,2043.7,2043.5,0.0011]
[1772801041010,0.49999999,2043.6,2043.5,0.0011]
[1772801041382,0.49999999,2043.6,2043.3,0.0011]
[1772801042903,0.49944999,2043.4,2043.0,0.0011]
[1772801043102,0.49944999,2043.4,2043.0,0.0036]
[1772801043611,0.49944999,2043.4,2043.0,0.0011]
[1772801044307,0.49944999,2043.4,2042.5,0.0011]
[1772801044510,0.49944999,2043.4,2042.6,0.0025]
[1772801044986,0.49944999,2043.2,2042.6,0.0025]
[1772801045188,0.49944999,2043.2,2042.5,0.0011]
[1772801045404,0.49944999,2043.2,2042.5,0.0036]
[1772801046886,1.22363075,2043.1,2042.5,0.0036]
[1772801047091,0.49944999,2043.0,2042.5,0.0036]
[1772801048218,0.49944999,2043.0,2042.5,0.0011]
[1772801049208,0.49944999,2042.8,2042.5,0.0011]
[1772801050792,0.49944999,2042.8,2042.6,0.0025]
[1772801051417,1.72332035,2042.7,2042.6,0.0025]
[1772801052693,0.49944999,2042.6,2042.3,0.0011]
[1772801053505,1.72344019,2042.5,2042.3,0.0011]
[1772801054290,0.49944999,2042.5,2042.3,0.0011]
[1772801054490,1.72333164,2042.7,2042.5,0.0011]
[1772801056307,0.49944999,2042.9,2042.5,0.0011]
[1772801057233,0.49944999,2042.9,2042.5,0.0022]
[1772801057913,1.72308074,2043.1,2042.6,0.0011]
[1772801058424,0.50044999,2043.2,2042.6,0.0011]
[1772801060599,1.7240636,2043.2,2042.6,0.0011]
[1772801060805,1.72402343,2043.2,2042.6,0.0011]
[1772801062632,0.49944999,2043.1,2042.6,0.0011]
[1772801062932,1.72314064,2043.0,2042.6,0.0011]
[1772801063120,0.49944999,2042.9,2042.6,0.0011]
[1772801063326,1.22369065,2043.0,2042.6,0.0011]
[1772801063521,1.72314064,2043.0,2042.6,0.0011]
[1772801064135,0.49944999,2043.0,2042.6,0.0011]
[1772801064838,0.49944999,2043.0,2042.5,0.0011]
[1772801064839,1.72320054,2042.9,2042.5,0.0011]
[1772801065016,1.72320054,2042.9,2042.5,0.0022]
[1772801066024,1.72320054,2042.9,2042.6,0.0011]
[1772801066233,4.89531098,2043.2,2042.6,0.0011]
[1772801066234,1.22364322,2043.1,2042.6,0.0011]
[1772801066642,1.22364322,2043.1,2042.7,0.0022]
[1772801066831,0.001,2043.0,2042.8,0.0011]
[1772801067236,1.72292055,2043.4,2042.9,0.0011]
[1772801069239,0.49944999,2043.3,2042.9,0.0011]
[1772801070622,1.72284867,2043.5,2042.9,0.0011]
[1772801070943,1.72291842,2043.4,2042.9,0.0011]
[1772801071436,1.72290157,2043.4,2042.9,0.0011]
[1772801071646,1.72290964,2043.4,2042.9,0.0011]
[1772801072139,0.49944999,2043.6,2042.9,0.0011]
[1772801072328,1.72282999,2043.6,2042.9,0.0011]
[1772801073515,0.49944999,2043.5,2042.9,0.0011]
[1772801075252,0.49944999,2043.5,2042.9,1.22485055]
[1772801075253,0.49944999,2043.3,2042.9,1.22485055]
[1772801075658,0.49944999,2043.3,2042.9,0.0011]
[1772801076721,0.49944999,2043.3,2042.8,0.0011]
[1772801078516,1.72300615,2043.3,2043.1,0.0011]
[1772801078716,1.72400615,2043.3,2043.1,0.0011]
[1772801079026,0.49944999,2043.2,2043.1,0.0011]
[1772801079422,0.49944999,2043.2,2042.9,0.0011]
[1772801081149,1.72253074,2043.1,2042.9,0.0011]
[1772801082054,0.49889999,2043.1,2042.9,0.0011]
[1772801083262,1.72259064,2043.0,2042.9,0.0011]
[1772801083636,1.22456002,2043.3,2042.9,0.0033]
[1772801084140,0.001,2043.3,2042.9,0.0033]
[1772801084351,1.22451591,2043.3,2043.0,0.0022]
[1772801084666,0.001,2043.3,2043.0,0.0022]
[1772801085161,1.22452054,2043.3,2043.0,0.0022]
[1772801085330,0.001,2043.3,2043.0,0.0022]
[1772801085933,0.49889999,2043.6,2043.1,0.0022]
[1772801086136,1.72223915,2043.6,2043.1,0.0022]
[1772801087652,1.72223915,2043.6,2043.1,1.22583075]
[1772801088044,0.49889999,2043.6,2043.1,1.22583075]
[1772801088233,2.52855992,2043.9,2043.3,0.4548785]
[1772801088234,0.001,2043.9,2043.3,0.4548785]
[1772801090171,0.001,2043.9,2043.5,0.4548785]
[1772801091035,1.22298288,2044.2,2043.5,0.4548785]
[1772801091036,1.71235028,2044.2,2043.5,0.4548785]
[1772801091265,0.001,2043.7,2043.6,1.5858785]
[1772801091468,1.71235028,2044.2,2043.7,0.4548785]
[1772801091655,0.4893674,2044.2,2043.7,0.4548785]
[1772801092040,1.71236062,2044.2,2043.8,1.67809016]
[1772801092471,1.22299322,2044.2,2043.9,0.4548785]
[1772801093268,1.71226882,2044.4,2043.9,0.4548785]
[1772801094164,1.71226882,2044.4,2044.0,0.4548785]
[1772801095135,0.49468795,2044.3,2043.8,1.69265315]
[1772801095340,0.49468795,2044.3,2043.9,0.46948758]
[1772801096051,1.22297231,2044.2,2043.9,0.46948758]
[1772801096250,0.49468795,2044.1,2043.6,5.36268457]
[1772801096572,0.49468795,2044.1,2043.7,1.131]
[1772801096865,0.49468795,2044.3,2043.8,0.46948758]
[1772801097238,0.49468795,2044.3,2043.4,4.8933255]
[1772801097450,0.49468795,2044.2,2043.1,0.47058758]
[1772801098138,0.49468795,2044.0,2043.1,1.69421624]
[1772801098339,0.49468795,2044.0,2043.2,0.46948758]
[1772801099948,0.49468795,2044.0,2043.1,0.0011]
[1772801100152,1.22303214,2044.1,2043.1,0.0011]
[1772801100153,0.49468795,2043.8,2043.1,0.0011]
[1772801100370,0.49468795,2043.6,2043.1,0.0011]
[1772801100573,0.49468795,2043.6,2043.1,0.47058758]
[1772801100948,1.22327151,2043.7,2043.1,0.47058758]
[1772801101451,1.71795946,2043.7,2043.1,0.47058758]
[1772801102979,0.49468795,2043.7,2043.3,0.47706313]
[1772801103276,0.49201081,2043.9,2043.3,0.47816313]
[1772801103656,0.001,2043.7,2043.3,0.47816313]
[1772801105075,0.001,2043.7,2043.3,2.83066386]
[1772801105275,0.001,2043.7,2043.3,2.35360073]
[1772801105478,0.001,2043.7,2043.4,0.47706313]
[1772801106568,6.38468482,2044.3,2043.5,0.47706313]
[1772801106569,5.38383924,2044.3,2043.5,0.47706313]
[1772801106949,1.71492329,2044.3,2043.5,0.47706313]
[1772801107361,1.71492329,2044.3,2043.7,0.47706313]
[1772801107561,1.22289915,2044.4,2043.7,0.47706313]
[1772801107973,0.00100001,2044.5,2044.1,0.47706313]
[1772801108207,0.49201081,2044.6,2044.1,0.47706313]
[1772801108378,0.49201081,2044.6,2043.7,0.47706313]
[1772801108582,0.49201081,2044.6,2043.7,1.60606313]
[1772801109792,0.49201081,2044.4,2043.7,1.60606313]
[1772801109989,0.49201081,2044.4,2043.7,2.8293323]
[1772801110158,0.49201081,2044.4,2043.7,1.60606313]
[1772801110358,0.49201081,2044.4,2043.5,1.70039708]
[1772801111175,0.49201081,2044.4,2043.5,1.70044394]
[1772801112085,0.49201081,2044.2,2043.6,0.47706313]
[1772801112750,0.49201081,2044.2,2043.5,1.22338081]
[1772801112950,0.49201081,2044.2,2043.5,1.70044394]
[1772801113553,0.49201081,2044.2,2043.5,0.47706313]
[1772801113982,0.49201081,2044.2,2043.3,1.70164034]
[1772801114182,0.49201081,2044.2,2043.3,2.83164034]
[1772801114486,0.49201081,2044.0,2043.4,0.47706313]
[1772801116186,0.49201081,2044.0,2043.5,0.0011]
[1772801116783,1.71516001,2044.0,2043.5,1.22449124]
[1772801117086,1.71516001,2044.0,2043.5,1.70155437]
[1772801117272,1.71516001,2044.0,2043.5,0.47816313]
[1772801119582,1.715103,2044.0,2043.6,1.22333137]
[1772801120288,1.71603143,2044.2,2043.7,0.47706313]
[1772801120488,0.49201081,2044.1,2043.7,0.47706313]
[1772801121201,0.49201081,2044.1,2043.6,1.22333137]
[1772801121380,0.49201081,2044.1,2043.6,1.7003945]
[1772801122103,1.71510278,2044.0,2043.6,0.47706313]
[1772801122399,1.71510278,2044.0,2043.6,1.70038502]
[1772801122698,1.71510278,2044.0,2043.6,0.47706313]
[1772801124092,1.71510278,2044.0,2043.6,1.70038809]
[1772801124392,1.22307321,2044.1,2043.7,0.47706313]
[1772801124771,0.49301081,2044.2,2043.7,0.47706313]
[1772801124973,1.22397862,2044.2,2043.7,0.47706313]
[1772801125983,1.22397862,2044.2,2043.8,1.60806313]
[1772801126832,1.22397862,2044.2,2043.8,2.83127362]
[1772801126976,0.49201081,2044.1,2043.8,1.131]
[1772801127174,0.49201081,2044.1,2043.6,0.47706313]
[1772801127693,1.22397862,2044.2,2043.6,0.47706313]
[1772801127894,0.001,2044.2,2043.8,0.47706313]
[1772801128177,0.001,2044.2,2043.9,1.70021494]
[1772801129088,0.36599756,2044.3,2043.9,1.70021494]
[1772801130520,1.58891848,2044.3,2043.9,1.70021494]
[1772801130771,1.58891848,2044.3,2043.9,0.47706313]
[1772801131510,1.58891848,2044.3,2043.9,1.70021053]
[1772801131808,1.58891376,2044.3,2043.9,1.70021053]
[1772801132910,1.58891376,2044.3,2043.9,0.47706313]
[1772801133315,1.2239162,2044.3,2044.0,0.47447241]
[1772801134907,0.001,2044.3,2044.0,0.47447241]
[1772801136204,0.49551148,2044.3,2043.8,0.47447241]
[1772801136615,0.49551148,2044.3,2043.8,1.6976804]
[1772801137606,1.71748379,2044.2,2043.8,0.47447241]
[1772801137814,1.71748379,2044.2,2043.8,1.69768076]
[1772801138015,0.49451148,2044.2,2043.8,1.69768076]
[1772801138256,0.001,2044.3,2043.9,0.47447241]
[1772801138429,0.49451148,2044.5,2043.9,0.47447241]
[1772801139133,4.8909392,2044.6,2043.9,0.47447241]
[1772801139300,0.49451148,2044.6,2043.9,0.47447241]
[1772801139901,1.71728961,2044.6,2044.1,0.47447241]
[1772801141015,1.71728961,2044.6,2044.1,0.47557241]
[1772801141333,1.22277813,2044.6,2044.1,0.47557241]
[1772801141634,1.71712493,2044.8,2044.1,0.47557241]
[1772801142131,1.71712493,2044.8,2044.2,1.22297231]
[1772801142304,1.71712493,2044.8,2044.3,0.47447241]
[1772801144335,1.71712493,2044.8,2044.4,0.47447241]
[1772801145540,0.49451148,2044.9,2044.4,0.47447241]
[1772801146412,1.22261345,2044.8,2044.5,0.47447241]
[1772801148237,0.49451148,2044.8,2044.5,0.47447241]
[1772801148420,0.49451148,2044.8,2044.4,0.47447241]
[1772801149030,0.49451148,2045.0,2044.4,0.47447241]
[1772801149711,0.49451148,2045.0,2044.1,0.0011]
[1772801150025,0.49451148,2044.8,2043.9,0.0011]
[1772801150210,0.49451148,2044.6,2043.9,0.47557241]
[1772801151116,0.49451148,2044.6,2043.9,0.0011]
[1772801151736,0.49451148,2044.6,2043.9,0.47557241]
[1772801152110,0.49451148,2044.4,2043.9,0.47557241]
[1772801153112,0.49451148,2044.4,2043.9,0.0011]
[1772801153912,0.49451148,2044.4,2044.2,0.0011]
[1772801154145,0.49451148,2044.4,2043.5,1e-08]
[1772801154349,0.46647457,2044.2,2043.5,1e-08]
[1772801154549,0.46647457,2044.2,2044.0,0.0011]
[1772801156128,0.46647457,2044.2,2043.5,1e-08]
[1772801156443,0.46647457,2044.0,2043.5,1e-08]
[1772801158468,0.46647457,2043.8,2043.5,1e-08]
[1772801159256,1.22315181,2043.9,2043.5,0.45829306]
[1772801160461,0.46647457,2044.4,2043.6,0.45829305]
[1772801160623,1.22291248,2044.3,2043.6,0.45829305]
[1772801161021,1.68936182,2044.4,2043.6,0.45829305]
[1772801161257,1.22288725,2044.4,2043.6,0.45829305]
[1772801161441,1.22283774,2044.5,2043.6,0.45829305]
[1772801161648,0.001,2044.8,2043.6,0.45829305]
[1772801161953,0.48520721,2044.6,2043.6,0.45829305]
[1772801162459,0.48520721,2044.6,2043.7,0.48664014]
[1772801162460,0.48520721,2044.4,2043.7,0.48664014]
[1772801164558,1.22291248,2044.3,2043.7,1.70986403]
[1772801164757,1.70811969,2044.3,2043.7,1.70986403]
[1772801165261,1.70811969,2044.3,2043.7,1.70991124]
[1772801165658,0.48520721,2044.2,2043.7,1.70991124]
[1772801165970,0.48520721,2044.2,2043.7,1.70989669]
[1772801166261,0.48520721,2044.2,2043.9,0.0011]
[1772801166636,1.22303214,2044.1,2043.9,0.0011]
[1772801166960,0.48520721,2044.2,2043.9,0.0011]
[1772801167265,1.22292757,2044.3,2043.9,0.0011]
[1772801167443,1.70811265,2044.4,2043.9,0.48774014]
[1772801168952,0.48620721,2044.8,2044.1,0.48664014]
[1772801169152,1.70883947,2044.8,2044.1,0.48664014]
[1772801169361,0.48620721,2044.8,2044.1,0.48664014]
[1772801169533,1.22363201,2044.8,2044.1,0.48664014]
[1772801170464,1.70883922,2044.8,2044.1,0.48664014]
[1772801171050,0.48520721,2044.7,2044.2,0.48664014]
[1772801171542,0.48520721,2044.7,2044.1,1.22298343]
[1772801172061,0.48520721,2044.7,2044.1,1.70962357]
[1772801172565,1.22363201,2044.8,2044.2,0.48664014]
[1772801172566,0.001,2044.8,2044.2,0.48664014]
[1772801172963,0.001,2044.8,2044.4,0.48664014]
[1772801173340,0.48620721,2044.8,2044.2,0.48664014]
[1772801174863,0.001,2044.8,2044.2,0.48664014]
[1772801175063,0.001,2044.8,2044.4,0.48664014]
[1772801177067,0.001,2044.8,2044.5,0.48664014]
[1772801178572,0.001,2044.6,2044.3,1.70950291]
[1772801179071,0.001,2044.6,2044.3,2.84750291]
[1772801179272,0.001,2044.6,2044.3,2.84754759]
[1772801179459,0.001,2044.6,2044.3,1.22290745]
[1772801181594,0.001,2044.6,2044.2,5.37841719]
[1772801181595,0.001,2044.6,2044.2,0.48664014]
[1772801181879,0.48620721,2044.6,2044.1,2.36100338]
[1772801182972,0.001,2044.8,2044.2,0.48664014]
[1772801183567,0.001,2044.8,2044.3,1.70955262]
[1772801184978,0.48620721,2044.8,2044.3,0.48664014]
[1772801185850,1.70788046,2044.7,2044.2,1.22292653]
[1772801187282,0.48520721,2044.7,2044.2,1.22292653]
[1772801187473,0.48520721,2044.7,2044.2,1.70956667]
[1772801187681,1.70788322,2044.7,2044.2,1.70956667]
[1772801187991,0.48520721,2044.6,2044.0,2.85069093]
[1772801188287,0.48520721,2044.6,2044.0,1.141]
[1772801188985,0.48520721,2044.6,2044.0,2.36408913]
[1772801189193,0.48520721,2044.6,2043.9,0.0011]
[1772801190065,0.48520721,2044.4,2043.9,0.0011]
[1772801192488,1.22291248,2044.3,2043.9,0.0011]
[1772801192859,1.70888992,2044.3,2043.9,0.0011]
[1772801193076,0.48597744,2044.3,2043.9,0.0011]
[1772801193270,1.22286784,2044.4,2043.9,0.45462173]
[1772801193470,1.70884528,2044.4,2043.9,0.45462173]
[1772801194684,0.48597744,2044.3,2043.9,1.2242337]
[1772801194995,0.48597744,2044.3,2043.9,0.0011]
[1772801195290,0.48597744,2044.3,2043.9,1.22424814]
[1772801195472,0.48597744,2044.3,2043.9,1.22424219]
[1772801196895,1.70889727,2044.3,2043.9,1.22424219]
[1772801197995,0.48597744,2044.3,2043.9,1.22424219]
[1772801198186,1.7089025,2044.3,2043.9,1.22424219]
[1772801199395,1.70889312,2044.3,2043.9,1.22424219]
[1772801199891,1.70889312,2044.3,2043.9,0.0011]
[1772801200098,1.70889312,2044.3,2043.9,0.45462173]
[1772801201298,0.48597744,2044.3,2043.9,1.67772625]
[1772801202202,1.70889648,2044.3,2044.1,0.0011]
[1772801202375,0.48597744,2044.2,2043.9,0.0011]
[1772801202575,0.48597744,2044.2,2043.7,0.0011]
[1772801203602,0.48597744,2044.0,2043.7,0.0011]
[1772801205704,0.48597744,2043.8,2043.7,0.0011]
[1772801206074,0.48597744,2043.8,2043.6,0.0011]
[1772801207677,0.48597744,2044.0,2043.6,1.6790531]
[1772801208692,0.48597744,2044.2,2043.7,0.45352173]
[1772801209270,0.48697744,2044.4,2043.8,0.45462173]
[1772801209503,0.48697744,2044.4,2043.8,0.45352173]
[1772801210002,0.48697744,2044.4,2043.9,1.22315181]
[1772801210202,1.70983655,2044.4,2043.9,1.22315181]
[1772801211213,0.48697744,2044.4,2043.9,1.22315181]
[1772801211382,1.70985204,2044.4,2043.9,1.22315181]
[1772801211778,0.48597744,2044.1,2043.6,0.0011]
[1772801211980,0.48597744,2043.7,2043.3,0.0011]
[1772801213211,1.96897744,2043.7,2043.3,0.0011]
[1772801213706,2.72695691,2043.8,2043.3,0.0011]
[1772801213909,1.69134795,2043.9,2043.3,0.45462173]
[1772801214678,1.22313822,2044.0,2043.5,0.0011]
[1772801214880,1.22309459,2044.0,2043.5,0.0011]
[1772801215079,0.001,2044.2,2043.5,0.49686254]
[1772801216085,0.001,2044.2,2043.7,0.49576254]
[1772801217990,0.001,2044.2,2043.7,1.71899976]
[1772801219306,0.001,2044.2,2043.8,0.49576254]
[1772801220014,0.001,2044.2,2043.7,1.22323722]